fUST/lending_fUST_20250524
["ID","MTS","AMOUNT","RATE_DAILY","PERIOD"]
[362129474,1748016220371,214.607205,0.00013699,2]
[362129525,1748016632195,-966.99860654,0.00016043,2]
[362129526,1748016632206,-2070.0,0.00016701,2]
[362129527,1748016632215,-185.24513084,0.0001694,2]
[362129528,1748016632227,-589.2462817,0.00018292,2]
[362129529,1748016632238,-304.88426648,0.000189,2]
[362129530,1748016632248,-197.0,0.00019134,2]
[362129531,1748016632257,-894.64583333,0.00019135,2]
[362129532,1748016632267,-422.85710789,0.00019135,2]
[362129533,1748016632277,-12647.66147447,0.00019135,2]
[362129534,1748016632287,-160.0,0.00019135,2]
[362129535,1748016632297,-160.0,0.00019135,2]
[362129536,1748016632306,-212.48480548,0.00019135,2]
[362129537,1748016632316,-3048.97649327,0.00019198,2]
[362129538,1748016632417,-546.50562813,0.00019198,2]
[362129539,1748016632466,-420.49297841,0.00019198,2]
[362129728,1748017226366,203.876844,0.00013699,2]
[362129730,1748017349993,2331.85,0.00026278,60]
[362129742,1748017712343,76314.6649232,0.00026278,30]
[362129746,1748017724093,222006.360202,0.00015,2]
[362129798,1748017832136,-1376.0579107,0.0001877,2]
[362129800,1748017832147,-265.229625,0.00019013,2]
[362129801,1748017832157,-560.4025741,0.00019069,2]
[362129803,1748017832167,-6385.5280789,0.00019131,2]
[362129814,1748017838183,-2362.52698567,0.00019131,2]
[362129867,1748017840346,-3899.6064099,0.00019131,2]
[362129868,1748017840356,-160.0,0.00019197,2]
[362129869,1748017840365,-108.87557185,0.00019197,2]
[362129913,1748017843267,-785.77026148,0.00019197,2]
[362129915,1748017843278,-422.85710789,0.00019197,2]
[362129917,1748017843287,-160.0,0.00019197,2]
[362129919,1748017843297,-212.48480548,0.00019197,2]
[362129921,1748017843306,-160.0,0.00019197,2]
[362129923,1748017843316,-207.4,0.00019782,2]
[362129925,1748017843327,-430.0,0.00019845,2]
[362129927,1748017843337,-430.0,0.00019845,2]
[362129929,1748017843347,-430.0,0.00019845,2]
[362129931,1748017843357,-430.0,0.00019845,2]
[362129933,1748017843366,-197.05279187,0.00019845,2]
[362129935,1748017843377,-7747.59512036,0.00019846,2]
[362132549,1748018165146,7021.43,0.00015,2]
[362132550,1748018260599,201.799358,0.00013699,2]
[362132585,1748019032299,-2220.0,0.00018711,2]
[362132588,1748019032310,-203.25617765,0.000189,2]
[362132590,1748019032320,-300.0,0.00019638,2]
[362132592,1748019032329,-300.0,0.00019638,2]
[362132594,1748019032339,-1200.0,0.00019638,2]
[362132595,1748019032353,-894.64583333,0.00019639,2]
[362132596,1748019032363,-422.85710789,0.00019639,2]
[362132597,1748019032373,-212.48480548,0.00019639,2]
[362132598,1748019032383,-160.0,0.00019639,2]
[362132599,1748019032393,-7957.09276754,0.00019639,2]
[362132600,1748019032403,-300.0,0.00019641,2]
[362132601,1748019032413,-265.229625,0.00019644,2]
[362132603,1748019032422,-207.4,0.00019782,2]
[362132605,1748019032432,-349.2695165,0.00019798,2]
[362132606,1748019032442,-430.0,0.00019845,2]
[362132608,1748019032452,-336.15908957,0.00019845,2]
[362132614,1748019032505,-329.33091043,0.00019845,2]
[362132616,1748019032515,-22655.4797095,0.0001985,2]
[362132618,1748019032526,-430.0,0.00020119,2]
[362132620,1748019032539,-665.49,0.00020119,2]
[362132622,1748019032549,-201.799358,0.00020187,2]
[362132624,1748019032559,-430.0,0.00020393,2]
[362132627,1748019032570,-665.49,0.00020393,2]
[362132629,1748019032580,-248.97,0.00020399,2]
[362132631,1748019032590,-157.0640115,0.000204,2]
[362132634,1748019032599,-158.2090311,0.000204,2]
[362132637,1748019032609,-158.2090311,0.000204,2]
[362132640,1748019032619,-158.2090311,0.000204,2]
[362132643,1748019032628,-363.6506951,0.000204,2]
[362132646,1748019032638,-1138.9714458,0.000204,2]
[362132649,1748019032648,-430.0,0.00020588,2]
[362132651,1748019032658,-1095.268234,0.00020589,2]
[362132653,1748019032668,-430.0,0.00020614,2]
[362132655,1748019032677,-960.0,0.00020614,2]
[362132656,1748019032687,-2233.0,0.00020614,2]
[362132657,1748019032697,-707.0,0.00020614,2]
[362132658,1748019032706,-404.0,0.00020614,2]
[362132659,1748019032716,-92.43583461,0.00020614,2]
[362132685,1748019038300,-160.0,0.00019639,2]
[362132686,1748019038310,-582.3,0.00020614,2]
[362132687,1748019038320,-311.56416539,0.00020614,2]
[362132688,1748019038330,-161.60590693,0.00020798,2]
[362132690,1748019038339,-210.80639659,0.00020888,2]
[362132692,1748019038349,-582.3,0.00020888,2]
[362132693,1748019038359,-239.6,0.00020898,2]
[362132695,1748019038368,-239.6,0.00020898,2]
[362132697,1748019038378,-239.6,0.00020898,2]
[362132699,1748019038388,-239.6,0.00020898,2]
[362132701,1748019038398,-239.6,0.00020898,2]
[362132703,1748019038409,-239.6,0.00020898,2]
[362132705,1748019038419,-239.6,0.00020898,2]
[362132707,1748019038429,-239.6,0.00020898,2]
[362132709,1748019038438,-239.5,0.00020898,2]
[362132711,1748019038447,-2477.94464943,0.000209,4]
[362132714,1748019038458,-1566.75392101,0.00020938,3]
[362132716,1748019038468,-436.445,0.00020938,2]
[362132718,1748019038478,-500.0,0.00020993,2]
[362132720,1748019038488,-159.92764735,0.00020993,2]
[362132722,1748019038497,-500.0,0.00020993,2]
[362132724,1748019038507,-209.07201647,0.00020993,2]
[362132726,1748019038516,-500.0,0.00020993,2]
[362132728,1748019038526,-500.0,0.00020993,2]
[362132730,1748019038539,-169.2229285,0.00020993,2]
[362132732,1748019038548,-500.0,0.00020993,2]
[362132734,1748019038557,-500.0,0.00020993,2]
[362132736,1748019038567,-500.0,0.00020993,2]
[362132738,1748019038577,-500.0,0.00020993,2]
[362132740,1748019038586,-500.0,0.00020993,2]
[362132742,1748019038595,-500.0,0.00020993,2]
[362132744,1748019038605,-500.0,0.00020993,2]
[362132746,1748019038615,-500.0,0.00020993,2]
[362132747,1748019038625,-500.0,0.00020993,2]
[362132749,1748019038634,-500.0,0.00020993,2]
[362132751,1748019038643,-500.0,0.00020993,2]
[362132753,1748019038653,-500.0,0.00020993,2]
[362132770,1748019038797,-599.37516261,0.00020993,2]
[362132772,1748019038807,-500.0,0.00020993,2]
[362132774,1748019038818,-500.0,0.00020993,2]
[362132776,1748019038827,-500.0,0.00020993,2]
[362132778,1748019038836,-500.0,0.00020993,2]
[362132780,1748019038846,-500.0,0.00020993,2]
[362132782,1748019038855,-500.0,0.00020993,2]
[362132784,1748019038864,-500.0,0.00020993,2]
[362132786,1748019038874,-500.0,0.00020993,2]
[362132788,1748019038884,-500.0,0.00020993,2]
[362132790,1748019038894,-500.0,0.00020993,2]
[362132792,1748019038903,-500.0,0.00020993,2]
[362132794,1748019038913,-500.0,0.00020993,2]
[362132796,1748019038923,-500.0,0.00020993,2]
[362132798,1748019038932,-500.0,0.00020993,2]
[362132800,1748019038942,-500.0,0.00020993,2]
[362132802,1748019038951,-500.0,0.00020993,2]
[362132804,1748019038962,-500.0,0.00020993,2]
[362132806,1748019038972,-4304.8518,0.00021,2]
[362132808,1748019038981,-176.13,0.0002101,2]
[362132810,1748019038991,-176.13,0.0002101,2]
[362132812,1748019039000,-176.14646473,0.0002101,2]
[362132814,1748019039010,-2477.94464939,0.00021038,4]
[362132816,1748019039020,-215.0738,0.00021151,2]
[362132818,1748019039029,-582.3,0.00021162,2]
[362132821,1748019039041,-2477.94464939,0.00021176,4]
[362132823,1748019039050,-544.63,0.000213,14]
[362132825,1748019039059,-2477.94464939,0.00021314,5]
[362132827,1748019039069,-512.88946097,0.00021387,2]
[362132829,1748019039079,-582.3,0.00021436,2]
[362132831,1748019039089,-2477.94464939,0.00021452,5]
[362132833,1748019039098,-1200.0,0.00021495,2]
[362132835,1748019039108,-1100.0,0.00021587,2]
[362132837,1748019039117,-2477.94464939,0.0002159,5]
[362132839,1748019039127,-160.538,0.00021608,2]
[362132841,1748019039137,-500.0,0.00021617,2]
[362132843,1748019039147,-500.0,0.00021694,2]
[362132845,1748019039156,-154.968929,0.00021698,6]
[362132847,1748019039166,-159.957848,0.00021698,6]
[362132849,1748019039175,-582.3,0.0002171,2]
[362132851,1748019039185,-2477.94464939,0.00021728,5]
[362132853,1748019039194,-2477.94464939,0.00021866,6]
[362132855,1748019039203,-368.20414752,0.0002188,2]
[362132857,1748019039212,-512.88946097,0.0002188,2]
[362132859,1748019039222,-5003.28759719,0.000219,2]
[362132861,1748019039231,-932.96,0.00021907,3]
[362132863,1748019039241,-466.48,0.00021907,3]
[362132865,1748019039250,-233.24,0.00021907,3]
[362132867,1748019039260,-212.48480548,0.00021907,10]
[362132869,1748019039269,-14004.04,0.00021907,10]
[362132871,1748019039279,-600.12064586,0.00021908,2]
[362132873,1748019039289,-200.0,0.00021917,2]
[362132875,1748019039299,-297.095476,0.00021917,2]
[362132877,1748019039308,-500.0,0.00021917,2]
[362132879,1748019039318,-430.0,0.00021917,2]
[362132882,1748019039328,-430.0,0.00021917,2]
[362132884,1748019039337,-430.0,0.00021917,2]
[362132886,1748019039348,-302.89619849,0.00021917,2]
[362132888,1748019039357,-151.0,0.00021917,2]
[362132890,1748019039367,-151.0,0.00021917,2]
[362132892,1748019039377,-151.0,0.00021917,2]
[362132894,1748019039386,-151.0,0.00021917,2]
[362132895,1748019039396,-275.283176,0.00021917,2]
[362132897,1748019039406,-310.49352626,0.00021917,2]
[362132899,1748019039415,-500.0,0.00021917,2]
[362132901,1748019039425,-500.0,0.00021917,2]
[362132903,1748019039434,-598.62260868,0.00021917,2]
[362132905,1748019039444,-293.943628,0.00021917,2]
[362132907,1748019039454,-151.0,0.00021917,2]
[362132909,1748019039463,-151.0,0.00021917,2]
[362132911,1748019039472,-151.0,0.00021917,2]
[362132913,1748019039482,-5000.0,0.00021917,2]
[362132915,1748019039491,-5000.0,0.00021917,2]
[362132917,1748019039501,-5000.0,0.00021917,2]
[362132919,1748019039510,-5000.0,0.00021917,2]
[362132921,1748019039519,-5000.0,0.00021917,2]
[362132922,1748019039529,-222.0,0.00021917,2]
[362132923,1748019039542,-177.8311,0.00021918,2]
[362132924,1748019039551,-699.77,0.0002197,3]
[362132925,1748019039563,-70444.56,0.0002198,3]
[362132926,1748019039574,-151.0,0.0002198,7]
[362132927,1748019039585,-151.0,0.0002198,7]
[362132928,1748019039594,-151.0,0.0002198,7]
[362132929,1748019039605,-894.64583333,0.0002198,3]
[362132930,1748019039614,-212.48480548,0.0002198,3]
[362132931,1748019039624,-151.0,0.0002198,7]
[362132932,1748019039634,-582.3,0.00021984,2]
[362132933,1748019039644,-151.0,0.00021998,7]
[362132934,1748019039655,-151.0,0.00021999,7]
[362132935,1748019039665,-500.0,0.00022,2]
[362132936,1748019039674,-500.0,0.00022,2]
[362132937,1748019039684,-743.02111146,0.00022,2]
[362132938,1748019039694,-500.0,0.00022,2]
[362132939,1748019039704,-743.02111146,0.00022,2]
[362132941,1748019039714,-743.02111146,0.00022,2]
[362132942,1748019039723,-210.43905769,0.00022,2]
[362132943,1748019039733,-743.02111146,0.00022,2]
[362132944,1748019039742,-743.02111146,0.00022,2]
[362132945,1748019039752,-500.0,0.00022,2]
[362132947,1748019039762,-743.02111146,0.00022,2]
[362132948,1748019039771,-500.0,0.00022,2]
[362132949,1748019039781,-743.02111146,0.00022,2]
[362132950,1748019039790,-500.0,0.00022,2]
[362132951,1748019039800,-743.02111146,0.00022,2]
[362132952,1748019039810,-500.0,0.00022,2]
[362132953,1748019039820,-500.0,0.00022,2]
[362132954,1748019039830,-743.02111146,0.00022,2]
[362132955,1748019039840,-743.02111146,0.00022,2]
[362132956,1748019039850,-500.0,0.00022,2]
[362132957,1748019039859,-176.65675093,0.00022,2]
[362132958,1748019039870,-500.0,0.00022,2]
[362132959,1748019039879,-500.0,0.00022,2]
[362132960,1748019039890,-743.02111146,0.00022,2]
[362132961,1748019039901,-500.0,0.00022,2]
[362132962,1748019039912,-743.02111146,0.00022,2]
[362132963,1748019039922,-743.02111146,0.00022,2]
[362132964,1748019039932,-743.02111146,0.00022,2]
[362132965,1748019039942,-743.02111146,0.00022,2]
[362132966,1748019039952,-93379.50074934,0.00022,2]
[362132967,1748019039963,-1000.0,0.00022,22]
[362132968,1748019039973,-151.0,0.00022,7]
[362132969,1748019039983,-151.0,0.00022,7]
[362132970,1748019039992,-151.0,0.00022,7]
[362132971,1748019040002,-170.0,0.00022,2]
[362132972,1748019040011,-151.0,0.00022,7]
[362132973,1748019040021,-161.0,0.00022,2]
[362132974,1748019040032,-129607.45900204,0.00022001,2]
[362132975,1748019040041,-151.0,0.00022002,7]
[362132976,1748019040051,-2477.94464939,0.00022003,6]
[362132977,1748019040061,-151.0,0.00022034,7]
[362132978,1748019040070,-151.0,0.00022035,7]
[362132980,1748019040080,-151.0,0.00022037,7]
[362132982,1748019040090,-8454.14,0.00022102,2]
[362132984,1748019040100,-2477.94464939,0.00022141,6]
[362132986,1748019040109,-784.75909764,0.00022165,2]
[362132988,1748019040119,-200.0,0.00022191,30]
[362132989,1748019040129,-161.0,0.00022192,7]
[362132991,1748019040139,-154.968929,0.00022226,2]
[362132993,1748019040150,-375.80031225,0.00022242,2]
[362132995,1748019040159,-582.3,0.00022258,2]
[362132996,1748019040169,-2477.94464939,0.00022279,6]
[362132997,1748019040179,-151.0,0.00022311,7]
[362132998,1748019040190,-160.0,0.00022365,3]
[362132999,1748019040201,-368.20414749,0.00022369,2]
[362133000,1748019040211,-2477.94464939,0.00022417,7]
[362133001,1748019040220,-200.0,0.00022465,30]
[362133002,1748019040230,-500.0,0.00022465,2]
[362133004,1748019040240,-223.0315306,0.0002252,2]
[362133005,1748019040250,-158.226296,0.00022521,7]
[362133006,1748019040260,-2477.94464939,0.00022555,7]
[362133007,1748019040270,-2000.0,0.00022682,2]
[362133008,1748019040280,-1100.0,0.00022683,2]
[362133009,1748019040289,-212.48480548,0.00022693,7]
[362133010,1748019040299,-2477.94464939,0.00022693,7]
[362133011,1748019040309,-154.968929,0.00022736,8]
[362133012,1748019040319,-159.957848,0.00022736,8]
[362133013,1748019040328,-200.0,0.00022739,30]
[362133014,1748019040337,-151.0,0.00022739,7]
[362133015,1748019040347,-154.968929,0.00022752,2]
[362133016,1748019040356,-159.957848,0.00022752,2]
[362133017,1748019040365,-154.968929,0.00022825,9]
[362133018,1748019040375,-2477.94464939,0.00022831,8]
[362133019,1748019040384,-368.20414749,0.00022858,2]
[362133020,1748019040394,-10714.11736443,0.00022912,7]
[362133021,1748019040404,-2477.94464939,0.00022969,8]
[362133022,1748019040414,-1888.0,0.00023,2]
[362133023,1748019040423,-1888.0,0.00023,2]
[362133024,1748019040433,-1888.0,0.00023,2]
[362133025,1748019040443,-1888.0,0.00023,2]
[362133026,1748019040452,-1888.0,0.00023,2]
[362133028,1748019040462,-1888.0,0.00023,2]
[362133031,1748019040472,-1888.0,0.00023,2]
[362133032,1748019040481,-1888.0,0.00023,2]
[362133034,1748019040490,-1888.0,0.00023,2]
[362133036,1748019040499,-1888.0,0.00023,2]
[362133038,1748019040508,-1888.0,0.00023,2]
[362133040,1748019040517,-1888.0,0.00023,2]
[362133041,1748019040527,-1888.0,0.00023,2]
[362133043,1748019040537,-1888.0,0.00023,2]
[362133045,1748019040546,-1888.0,0.00023,2]
[362133047,1748019040555,-5000.0,0.00023,2]
[362133049,1748019040566,-5000.0,0.00023,2]
[362133051,1748019040577,-5000.0,0.00023,2]
[362133053,1748019040586,-5000.0,0.00023,2]
[362133055,1748019040595,-5000.0,0.00023,2]
[362133057,1748019040605,-3000.0,0.00023,2]
[362133059,1748019040617,-1000.0,0.00023,23]
[362133061,1748019040627,-160.0,0.00023,3]
[362133063,1748019040636,-151.0,0.00023,7]
[362133065,1748019040646,-268.342927,0.00023,7]
[362133067,1748019040659,-160.0,0.00023,3]
[362133069,1748019040669,-422.85710789,0.00023,3]
[362133071,1748019040679,-200.0,0.0002301,6]
[362133073,1748019040688,-231.13699969,0.00023013,30]
[362133075,1748019040698,-258.62,0.00023013,2]
[362133077,1748019040708,-161.0,0.00023014,7]
[362133080,1748019040718,-154.968929,0.0002303,7]
[362133083,1748019040727,-159.957848,0.0002303,7]
[362133087,1748019040737,-2000.0,0.00023098,2]
[362133090,1748019040749,-2477.94464939,0.00023107,8]
[362133092,1748019040758,-16908.28,0.00023154,2]
[362133094,1748019040768,-151.0,0.000232,10]
[362133096,1748019040778,-154.968929,0.00023226,9]
[362133098,1748019040787,-159.957848,0.00023226,9]
[362133100,1748019040796,-2477.94464939,0.00023245,8]
[362133102,1748019040806,-1865.92,0.00023277,3]
[362133104,1748019040816,-932.96,0.00023277,3]
[362133106,1748019040827,-466.48,0.00023277,3]
[362133108,1748019040837,-5033.95,0.00023287,2]
[362133110,1748019040847,-368.20414749,0.00023346,2]
[362133112,1748019040856,-2477.94464939,0.00023383,9]
[362133114,1748019040866,-151.0,0.000234,8]
[362133116,1748019040876,-5003.28759718,0.000234,2]
[362133118,1748019040886,-5000.0,0.00023428,2]
[362133120,1748019040896,-5000.0,0.00023428,2]
[362133122,1748019040908,-2477.94464939,0.00023521,9]
[362133124,1748019040918,-737.43,0.00023539,2]
[362133126,1748019040928,-332.38850875,0.00023561,3]
[362133128,1748019040937,-151.0,0.000236,8]
[362133130,1748019040947,-2233.0,0.00023614,2]
[362133132,1748019040956,-707.0,0.00023614,2]
[362133134,1748019040966,-404.0,0.00023614,2]
[362133136,1748019040975,-404.0,0.00023614,2]
[362133138,1748019040984,-737.43,0.00023639,3]
[362133140,1748019040994,-2477.94464939,0.00023659,9]
[362133142,1748019041003,-737.43,0.00023739,4]
[362133144,1748019041013,-154.968929,0.00023742,15]
[362133146,1748019041022,-1100.0,0.00023779,2]
[362133148,1748019041031,-2477.94464939,0.00023797,9]
[362133150,1748019041041,-151.0,0.000238,8]
[362133152,1748019041050,-368.20414749,0.00023835,2]
[362133154,1748019041060,-737.43,0.00023839,2]
[362133155,1748019041070,-294.36299066,0.00023863,3]
[362133158,1748019041080,-500.0,0.00023876,2]
[362133160,1748019041089,-600.0,0.00023879,2]
[362133162,1748019041098,-231.28369723,0.00023889,2]
[362133164,1748019041108,-311723.22162584,0.000239,2]
[362133166,1748019041118,-203.25617765,0.000239,2]
[362133168,1748019041127,-2477.94464939,0.00023934,10]
[362133170,1748019041137,-737.43,0.00023939,4]
[362133172,1748019041147,-505.23806914,0.00023997,2]
[362133174,1748019041157,-1000.0,0.00024,2]
[362133176,1748019041167,-500.0,0.00024,120]
[362133178,1748019041176,-1000.0,0.00024,24]
[362133180,1748019041185,-2004.5927036,0.00024,3]
[362133182,1748019041195,-2000.0,0.00024,2]
[362133184,1748019041204,-177.914397,0.00024,30]
[362133186,1748019041215,-441.12,0.00024,120]
[362133188,1748019041225,-160.0,0.00024,7]
[362133190,1748019041235,-160.0,0.00024,10]
[362133192,1748019041245,-160.0,0.00024,7]
[362133194,1748019041254,-160.0,0.00024,10]
[362133197,1748019041264,-422.85710789,0.00024,7]
[362133198,1748019041274,-422.85710789,0.00024,10]
[362133200,1748019041283,-636.0,0.00024,2]
[362133202,1748019041293,-154.968929,0.00024,30]
[362133205,1748019041303,-500.0,0.00024001,2]
[362133207,1748019041312,-737.43,0.00024039,3]
[362133209,1748019041322,-160.0,0.00024062,4]
[362133211,1748019041331,-2477.94464939,0.00024072,10]
[362133213,1748019041341,-430.0,0.00024109,2]
[362133215,1748019041350,-430.0,0.00024109,2]
[362133217,1748019041359,-430.0,0.00024109,2]
[362133219,1748019041368,-430.0,0.00024109,2]
[362133221,1748019041377,-496.5,0.00024109,2]
[362133223,1748019041389,-500.0,0.00024113,2]
[362133225,1748019041398,-737.43,0.00024139,7]
[362133227,1748019041411,-600.0,0.00024157,2]
[362133229,1748019041420,-500.0,0.00024159,2]
[362133231,1748019041431,-600.0,0.0002416,2]
[362133233,1748019041440,-162.0,0.00024164,7]
[362133235,1748019041450,-154.968929,0.00024186,15]
[362133237,1748019041460,-159.957848,0.00024186,15]
[362133239,1748019041470,-25362.42,0.00024207,2]
[362133241,1748019041480,-2477.94464939,0.0002421,10]
[362133243,1748019041489,-2200.0,0.00024214,2]
[362133245,1748019041499,-737.43,0.00024239,4]
[362133247,1748019041508,-500.0,0.00024276,2]
[362133249,1748019041518,-154.968929,0.00024304,32]
[362133251,1748019041527,-159.957848,0.00024304,32]
[362133253,1748019041541,-737.43,0.00024339,5]
[362133255,1748019041551,-2477.94464939,0.00024348,11]
[362133257,1748019041560,-500.0,0.00024389,2]
[362133259,1748019041570,-600.0,0.00024398,2]
[362133261,1748019041580,-151.0,0.000244,8]
[362133274,1748019041693,-500.0,0.00024421,2]
[362133276,1748019041704,-737.43,0.00024439,5]
[362133278,1748019041714,-600.0,0.00024484,2]
[362133280,1748019041724,-500.0,0.00024484,2]
[362133282,1748019041733,-2477.94464939,0.00024486,11]
[362133284,1748019041742,-600.0,0.0002449,2]
[362133286,1748019041752,-15149.0735445,0.000245,2]
[362133297,1748019041842,-1089.87739023,0.000245,2]
[362135093,1748019359065,189.830019,0.00013699,2]
[362135104,1748019544487,16181.22854621,0.00015,2]
[362135141,1748020232454,-5000.0,0.00018661,2]
[362135143,1748020232465,-324.7962802,0.00018926,2]
[362135145,1748020232474,-300.0,0.00019039,2]
[362135147,1748020232483,-300.0,0.00019039,2]
[362135149,1748020232493,-1200.0,0.00019039,2]
[362135151,1748020232503,-300.0,0.00019039,2]
[362135153,1748020232512,-189.0,0.0001904,2]
[362135154,1748020232521,-1235.85928843,0.00019041,2]
[362135160,1748020232689,-3823.89623137,0.00019041,2]
[362135161,1748020232700,-306.742493,0.00019041,2]
[362135162,1748020232709,-153.30079669,0.00019304,2]
[362135163,1748020232719,-351.60047889,0.00019396,2]
[362135164,1748020232730,-78.39952111,0.00019396,2]
[362135165,1748020232739,-430.0,0.00019396,2]
[362135166,1748020232749,-430.0,0.00019396,2]
[362135167,1748020232759,-430.0,0.00019396,2]
[362135168,1748020232768,-430.0,0.00019396,2]
[362135169,1748020232777,-430.0,0.00019396,2]
[362135170,1748020232787,-430.0,0.00019396,2]
[362135171,1748020232796,-430.0,0.00019396,2]
[362135172,1748020232805,-430.0,0.00019396,2]
[362135173,1748020232814,-430.0,0.00019396,2]
[362135174,1748020232824,-430.0,0.00019396,2]
[362135175,1748020232833,-430.0,0.00019396,2]
[362135176,1748020232842,-430.0,0.00019396,2]
[362135177,1748020232851,-232.97501777,0.00019397,2]
[362135178,1748020233015,-433.8591904,0.00019397,2]
[362135206,1748020238553,-300.0,0.00019038,2]
[362135207,1748020238563,-430.0,0.00019396,2]
[362135208,1748020238573,-430.0,0.00019396,2]
[362135209,1748020238583,-430.0,0.00019396,2]
[362135210,1748020238593,-430.0,0.00019396,2]
[362135211,1748020238603,-1420.36848021,0.00019397,2]
[362135212,1748020238615,-1595.80810613,0.00019397,2]
[362135213,1748020238627,-2297.51,0.00019397,2]
[362135214,1748020238639,-487.43904642,0.00019397,2]
[362135215,1748020238650,-3377.44884477,0.00019397,2]
[362135216,1748020238659,-1668.7014499,0.00019601,2]
[362135217,1748020238669,-430.0,0.0001967,2]
[362135218,1748020238678,-281.8593366,0.000199,2]
[362135219,1748020238687,-430.0,0.00019944,2]
[362135220,1748020238696,-281.85933634,0.00020072,2]
[362135221,1748020238706,-6177.75456545,0.00020187,2]
[362135222,1748020238715,-157.86,0.00020187,2]
[362135223,1748020238725,-189.830019,0.00020187,2]
[362135224,1748020238734,-430.0,0.00020218,2]
[362135225,1748020238744,-281.85933634,0.00020245,2]
[362135226,1748020238754,-170.96315367,0.00020295,2]
[362135227,1748020238763,-160.0,0.00020382,2]
[362135228,1748020238773,-200.0,0.00020389,2]
[362135229,1748020238782,-500.0,0.00020394,2]
[362135230,1748020238792,-532.42167574,0.00020394,2]
[362135231,1748020238802,-28.65551609,0.00020394,2]
[362135275,1748020243617,-430.0,0.00019396,2]
[362135277,1748020243627,-471.34448391,0.00020394,2]
[362135278,1748020243637,-500.0,0.00020394,2]
[362135279,1748020243646,-620.72610759,0.00020394,2]
[362135280,1748020243656,-500.0,0.00020394,2]
[362135281,1748020243665,-500.0,0.00020394,2]
[362135282,1748020243674,-500.0,0.00020394,2]
[362135283,1748020243684,-500.0,0.00020394,2]
[362135284,1748020243693,-376.52930003,0.00020394,2]
[362135285,1748020243703,-500.0,0.00020394,2]
[362135286,1748020243712,-500.0,0.00020394,2]
[362135287,1748020243722,-500.0,0.00020394,2]
[362135288,1748020243731,-500.0,0.00020394,2]
[362135290,1748020243740,-500.0,0.00020394,2]
[362135292,1748020243749,-500.0,0.00020394,2]
[362135294,1748020243758,-500.0,0.00020394,2]
[362135296,1748020243767,-500.0,0.00020394,2]
[362135298,1748020243777,-500.0,0.00020394,2]
[362135299,1748020243786,-500.0,0.00020394,2]
[362135301,1748020243796,-500.0,0.00020394,2]
[362135303,1748020243805,-500.0,0.00020394,2]
[362135305,1748020243814,-500.0,0.00020394,2]
[362135320,1748020243963,-500.0,0.00020394,2]
[362135322,1748020243975,-500.0,0.00020394,2]
[362135324,1748020243985,-500.0,0.00020394,2]
[362135327,1748020243999,-500.0,0.00020394,2]
[362135329,1748020244011,-500.0,0.00020394,2]
[362135330,1748020244020,-500.0,0.00020394,2]
[362135332,1748020244030,-500.0,0.00020394,2]
[362135334,1748020244039,-500.0,0.00020394,2]
[362135336,1748020244051,-500.0,0.00020394,2]
[362135338,1748020244061,-139.24764648,0.00020394,2]
[362135341,1748020244074,-360.75235352,0.00020394,2]
[362135343,1748020244083,-651.34576622,0.00020394,2]
[362135344,1748020244093,-500.0,0.00020394,2]